Cogmind - Beta 16 @@@ ROGUE MODE // 2025.11.03 @ 21:44:40 Player: Runia Result: Destroyed by 12-ASH with 12-ASH's Boomstick Performance ------------- Evolutions (1) 500 Regions Visited (6) 1200 Robots Destroyed (76) 380 Value Destroyed (1724) 1724 Prototype IDs (29) 580 Alien Tech Used (0) 0 Bonus (267) 267 TOTAL SCORE: 4651 Bonus ------- Aligned with FarCom 300 Friendly Fire -33 Cogmind --------- Core Integrity 0/400 Matter 235/300 Energy 280/280 System Corruption 0% Temperature Cool (0) Movement Treading (246) Ox1 Location -8/Mines Parts ------- > --- POWER (1) -------- Cooled Ion Engine > --- PROPULSION (3) --- Light Treads Armored Treads Armored Treads > --- UTILITY (3) ------ Cooling System Huge Storage Unit Salvage Targeting Computer > --- WEAPON (2) ------- Heavy Assault Rifle Heavy Assault Rifle > --- INVENTORY (25) --- Cooled Ion Engine Reinforced Fission Core Light Treads Advanced Myomer Leg Advanced Myomer Leg Experimental Heat Sink Cooling System High-capacity Storage Unit High-capacity Matter Pod (0) Gravity Neutralizer Experimental Targeting Computer Melee Analysis Suite Advanced Weapon Cycler Hacking Suite AS-neutralizer No. 17b Assault Rifle Assault Rifle Assault Rifle Autogun Rocket Launcher Mini Grenade Launcher Datajack Maul Katana Peak State ------------ > --- POWER ------------ Cooled Ion Engine > --- PROPULSION ------- Light Treads Armored Treads Armored Treads > --- UTILITY ---------- Cooling System Huge Storage Unit Salvage Targeting Computer > --- WEAPON ----------- Heavy Assault Rifle 8R-AWN's Boregun > --- INVENTORY -------- Cooled Ion Engine Reinforced Fission Core Light Treads Advanced Myomer Leg Advanced Myomer Leg Experimental Heat Sink Cooling System High-capacity Storage Unit High-capacity Matter Pod Gravity Neutralizer Experimental Targeting Computer Melee Analysis Suite Advanced Weapon Cycler Hacking Suite AS-neutralizer No. 17b Assault Rifle Assault Rifle Assault Rifle Heavy Assault Rifle Autogun Rocket Launcher Mini Grenade Launcher Datajack Maul Katana [Rating: 35] Favorites ----------- Power Cooled Ion Engine Engine Cooled Ion Engine Power Core Light Nuclear Core Propulsion Light Treads Treads Light Treads Leg Aluminum Leg Wheel Compact Wheel Utility Huge Storage Unit Device Heat Sink Storage Huge Storage Unit Processor Salvage Targeting Computer Hackware Hacking Suite Protection Light Armor Plating Weapon Beam Cannon Energy Gun Small Laser Energy Cannon Beam Cannon Ballistic Gun Assault Rifle Launcher Rocket Launcher Special Melee Weapon Datajack Build | -11 -10 -10 -9 -9 -9 -8 ------- Run | Yrd Mat Min Mat Min Exi Min Slots Evolved 2 | . . . 2 . . . Power . | . . . . . . . Propulsion 1 | . . . 1 . . . Utility 1 | . . . 1 . . . Weapon . | . . . . . . . Parts Attached 49 | 2 11 5 20 . 11 . Power 7 | . 2 2 3 . . . Engine 5 | . 1 2 2 . . . Core 2 | . 1 . 1 . . . Reactor . | . . . . . . . Propulsion 14 | 2 2 1 5 . 4 . Treads 11 | 2 . 1 4 . 4 . Leg . | . . . . . . . Wheel 3 | . 2 . 1 . . . Hover . | . . . . . . . Flight . | . . . . . . . Utility 12 | . 3 1 6 . 2 . Device 4 | . 1 1 2 . . . Storage 2 | . 2 . . . . . Processor 1 | . . . . . 1 . Hackware 1 | . . . 1 . . . Protection 4 | . . . 3 . 1 . Artifact . | . . . . . . . Weapon 16 | . 4 1 6 . 5 . Energy Gun . | . . . . . . . Energy Cannon 5 | . 2 1 2 . . . Ballistic Gun 7 | . 1 . 1 . 5 . Ballistic Cannon . | . . . . . . . Launcher 3 | . . . 3 . . . Special Weapon . | . . . . . . . Impact Weapon . | . . . . . . . Slashing Weapon . | . . . . . . . Piercing Weapon . | . . . . . . . Special Melee Weapon 1 | . 1 . . . . . Unidentified Prototypes 2 | . . . 1 . 1 . Parts Lost 20 | . 2 2 7 . 8 1 Power 2 | . . 1 1 . . . Propulsion 8 | . 2 . 2 . 4 . Utility 4 | . . . 2 . 2 . Weapon 6 | . . 1 2 . 2 1 Highest Loss Streak 5 | . 1 1 2 . 5 1 To Critical Strikes 5 | . . . . . 5 . Average Backups 21 | 7 13 19 24 25 23 24 Power 1 | 1 . 1 1 1 1 2 Propulsion 4 | 5 2 3 5 5 4 3 Utility 6 | . 2 5 7 8 7 10 Weapon 8 | 1 6 7 9 10 9 8 Tool/Special . | . . . . . . . Unused Backups 21 | . 3 . 6 . . 12 Power 2 | . 1 . . . . 1 Propulsion 3 | . 1 . 1 . . 1 Utility 7 | . 1 . . . . 6 Weapon 9 | . . . 5 . . 4 Tool/Special . | . . . . . . . Average Slot Usage (%) 98 | . 96 99 98 100 98 100 Engine 7 | . 2 8 8 11 11 11 Core 4 | . 11 5 2 . . . Treads 25 | . 15 14 28 33 32 33 Wheel 5 | . 12 14 4 . . . Device 6 | . 9 14 7 . . 11 Storage 12 | . 15 14 11 11 11 11 Hackware 4 | . . . 3 11 8 . Protection 6 | . . . 9 11 9 . Energy Cannon 14 | . 13 24 15 11 8 . Ballistic Gun 9 | . 13 3 6 11 13 22 Peak Build Rating 35 | 6 11 11 21 20 35 35 Average Rating 15 | 4 9 10 18 19 19 30 On Entrance 14 | 6 6 11 10 19 19 28 Avg Prop Armor Cover (%) 14 | . 12 12 20 . . . Naked Turns . | . . . . . . . Heaviest Build 110 | 13 110 94 99 96 96 99 Greatest Support 60 | 40 40 16 60 60 60 60 Greatest Overweight (x) 6 | . 6 5 6 1 1 1 Average Overweight (x) 2 | . 4 5 2 1 1 1 Largest Inventory Capacity 25 | 8 25 25 25 25 25 25 Average Capacity 24 | 8 23 25 25 25 25 25 Most Carried 25 | 8 17 24 25 25 25 25 Average Carried 21 | 6 13 19 24 25 23 24 Final Capacity 25 | 8 25 25 25 25 25 25 Final Carried 25 | 4 17 23 25 25 25 24 Class Distribution -------------------- 59% | Mutant 40% | Scavenger-Mutant Dominant Class ---------------- Mutant | -10/Materials Mutant | -10/Mines Mutant | -9/Materials Scavenger-Mutant | -9/Mines Scavenger-Mutant | -9/Exiles Scavenger-Mutant | -8/Mines Resources | -11 -10 -10 -9 -9 -9 -8 ----------- Run | Yrd Mat Min Mat Min Exi Min Matter Collected 1543 | 200 489 82 401 51 320 . Remotely . | . . . . . . . Salvage Created 2435 | . 668 198 1429 20 120 . Parts 147 | . 42 14 79 2 10 . Haulers Intercepted 6 | . 2 . 4 . . . Recyclers Shooed 4 | . 3 . 1 . . . Parts Field Recycled . | . . . . . . . Retrieved Matter . | . . . . . . . Parts Self-Destructed . | . . . . . . . Prevented . | . . . . . . . Parts Restored . | . . . . . . . Kills | -11 -10 -10 -9 -9 -9 -8 ------- Run | Yrd Mat Min Mat Min Exi Min Combat Hostiles Destroyed 49 | . 13 8 24 3 1 . Guns 9 | . 5 2 1 . 1 . Cannons 28 | . 7 5 16 . . . AOE 9 | . . . 6 3 . . Classes Destroyed 10 | . 6 1 3 . . . Worker 8 | . 1 . 6 1 . . Builder 1 | . . . 1 . . . Hauler 6 | . 2 . 4 . . . Recycler 2 | . . . 2 . . . Operator 3 | . 2 . 1 . . . Watcher 7 | . 3 . 4 . . . Swarmer 14 | . 3 6 2 3 . . Grunt 22 | . 10 . 12 . . . Duelist 3 | . . . 3 . . . Sentry 9 | . . 2 7 . . . Best Kill Streak 5 | . 5 3 5 4 1 . Combat Bots Only 4 | . 4 3 4 3 1 . Max Kills in Single Turn 3 | . 2 1 3 2 1 . Gunslinging . | . . . . . . . Exploded 2 | . . . 2 2 . . Melee . | . . . . . . . Uniques/NPCs Destroyed 1 | . . . . . 1 . 8R-AWN (-9/Exiles) Combat | -11 -10 -10 -9 -9 -9 -8 -------- Run | Yrd Mat Min Mat Min Exi Min Hostile Shots Fired 368 | . 73 41 144 4 90 16 Missed 85 | . 17 10 37 1 18 2 Hits 283 | . 56 31 107 3 72 14 Melee 6 | . . . 6 . . . Projectile 277 | . 56 31 101 3 72 14 Critical Strikes 47 | . 2 . 4 . 41 . Damage Taken 4146 | . 708 269 1499 23 1237 410 Core 564 | . 103 43 135 . 114 169 Absorbed by Shields . | . . . . . . . Regen/Repaired (Parts) 62 | . . . 62 . . . Core Remaining (%) 70 | 100 . 41 . . . . Volleys Fired 225 | . 61 18 95 5 44 2 Largest 2 | . 2 2 2 2 2 2 Hottest 120 | . 80 120 120 80 83 46 Shots Fired 440 | . 122 35 183 8 88 4 Gun 187 | . 62 7 27 3 84 4 Cannon 245 | . 60 28 150 3 4 . Launcher 8 | . . . 6 2 . . Special . | . . . . . . . Kinetic 186 | . 61 7 27 3 84 4 Thermal 246 | . 61 28 150 3 4 . Explosive 8 | . . . 6 2 . . Electromagnetic . | . . . . . . . Robot Hit Streak 22 | . 7 6 16 5 22 5 Robot Miss Streak 4 | . 3 4 4 1 2 2 Penetration Max . | . . . . . . . Secondary Targets . | . . . . . . . Shots Hit Robots 301 | . 81 16 125 5 72 2 Core Hits 112 | . 26 8 58 6 14 . Critical Kills 4 | . 2 2 . . . . Critical Parts Destroyed 2 | . . 1 . . 1 . Critical Strikes 7 | . 2 3 . . 2 . Meltdown 2 | . 1 1 . . . . Destroy 5 | . 1 2 . . 2 . Melee Attacks . | . . . . . . . Impact . | . . . . . . . Slashing . | . . . . . . . Piercing . | . . . . . . . Sneak Attacks . | . . . . . . . Combat Hostiles . | . . . . . . . Follow-up Attacks . | . . . . . . . Damage Inflicted 5571 | . 1258 278 2641 294 1070 30 Guns 2006 | . 557 50 275 42 1052 30 Cannons 2781 | . 701 228 1799 35 18 . Explosions 784 | . . . 567 217 . . Melee . | . . . . . . . Ramming . | . . . . . . . Kinetic 2006 | . 557 50 275 42 1052 30 Thermal 2781 | . 701 228 1799 35 18 . Explosive 784 | . . . 567 217 . . Electromagnetic . | . . . . . . . Impact . | . . . . . . . Slashing . | . . . . . . . Piercing . | . . . . . . . Highest Corruption . | . . . . . . . Average Corruption . | . . . . . . . Corruption Purged . | . . . . . . . Corruption Blocked . | . . . . . . . Overload Shots . | . . . . . . . Overflow Damage 38 | . . . 21 17 . . Projectiles 27 | . . . 21 6 . . Explosions 11 | . . . . 11 . . Melee . | . . . . . . . Knockbacks . | . . . . . . . Impact . | . . . . . . . Kinetic . | . . . . . . . Secondary . | . . . . . . . Self-Inflicted Damage . | . . . . . . . Shots . | . . . . . . . Rammed . | . . . . . . . Targets Rammed . | . . . . . . . Kicked . | . . . . . . . Crushed . | . . . . . . . Highest Temperature 287 | . 273 224 287 12 18 . Average Temperature 89 | . 113 94 79 8 9 . Received Heat Transfer 924 | . 354 9 561 . . . Effects 1 | . 1 . . . . . Interference 1 | . 1 . . . . . Siege Activations . | . . . . . . . Martial Activations . | . . . . . . . Shielding Activations . | . . . . . . . Robots Disrupted . | . . . . . . . Combat Hostiles . | . . . . . . . Robots Corrupted . | . . . . . . . Combat Hostiles . | . . . . . . . Parts Fried . | . . . . . . . Impact Corruptions . | . . . . . . . Robots Melted 3 | . 1 1 1 . . . Combat Hostiles 3 | . 1 1 1 . . . Parts Melted 16 | . 4 2 10 . . . Heat Transferred 5855 | . 1480 481 3811 74 9 . Parts Sabotaged . | . . . . . . . Parts Stolen . | . . . . . . . Parts Stripped . | . . . . . . . Power Chain Reactions . | . . . . . . . Alert | -11 -10 -10 -9 -9 -9 -8 ------- Run | Yrd Mat Min Mat Min Exi Min Maximum Alert Level 1 | . . . 1 . . . Low Security (%) 84 | 100 100 100 61 100 . 100 Level 1 15 | . . . 38 . . . Level 2 . | . . . . . . . Level 3 . | . . . . . . . Level 4 . | . . . . . . . Level 5 . | . . . . . . . High Security . | . . . . . . . Max Security . | . . . . . . . Peak Influence 302 | . 143 80 302 84 . . Initial 25 | . . . . 25 . . Average 68 | . 38 22 135 6 . . Influence Increases 1660 | . 474 210 892 84 . . Destroy 0b10 Robot/C 960 | . 260 160 480 60 . . Destroy 0b10 Robot/NC 135 | . 40 . 90 5 . . Destroy Leader 256 | . 80 20 146 10 . . Successful Hack 79 | . 17 . 62 . . . Disable Machine 60 | . 15 . 45 . . . Destroy Structure 65 | . 2 . 54 9 . . Lose Combat Pursuer 105 | . 60 30 15 . . . Influence Decreases 1660 | . 474 210 826 150 . . Entered New Map 41 | . . . . 41 . . Time Decay 1359 | . 454 190 606 109 . . Lost Part 110 | . 20 20 70 . . . Purge Threat 150 | . . . 150 . . . Squads Dispatched 5 | . 3 . 2 . . . Investigation 2 | . 1 . 1 . . . Extermination . | . . . . . . . Reinforcement 3 | . 2 . 1 . . . Assault . | . . . . . . . Garrison . | . . . . . . . Intercept . | . . . . . . . Searches Triggered . | . . . . . . . Construction Impeded . | . . . . . . . Haulers Reinforced . | . . . . . . . Active Scanning Responses . | . . . . . . . Cargo Convoy Interrupts . | . . . . . . . Stealth | -11 -10 -10 -9 -9 -9 -8 --------- Run | Yrd Mat Min Mat Min Exi Min Distress Signals 3 | . . . 3 . . . Communications Jammed . | . . . . . . . Distress Signals . | . . . . . . . Times Spotted 72 | . 24 10 33 3 1 1 Peak Tracking Total 6 | . 4 3 6 3 2 1 Tactical Retreats 5 | . 3 1 1 . . . Traps | -11 -10 -10 -9 -9 -9 -8 ------- Run | Yrd Mat Min Mat Min Exi Min Traps Triggered 2 | . 1 . 1 . . . Indirectly . | . . . . . . . Trap Hack Attempts 36 | . 18 . 18 . . . Triggered 1 | . 1 . . . . . Disarmed 6 | . . . 6 . . . Reprogrammed 3 | . 2 . 1 . . . Reused . | . . . . . . . Traps Extracted . | . . . . . . . Installed . | . . . . . . . Triggered . | . . . . . . . Machines | -11 -10 -10 -9 -9 -9 -8 ---------- Run | Yrd Mat Min Mat Min Exi Min Machines Disabled 5 | . 1 . 3 . 1 . Max in Single Turn 1 | . 1 . 1 . 1 . Machines Repaired . | . . . . . . . Machines Dismantled . | . . . . . . . Machines Sabotaged . | . . . . . . . Overloaded Fab Kills . | . . . . . . . Hacking | -11 -10 -10 -9 -9 -9 -8 --------- Run | Yrd Mat Min Mat Min Exi Min Machines Accessed 21 | . 6 . 13 . 2 . Terminals 15 | . 6 . 9 . . . Fabricators . | . . . . . . . Repair Stations 2 | . . . 2 . . . Recycling Units 1 | . . . 1 . . . Scanalyzers 1 | . . . 1 . . . Garrison Access . | . . . . . . . Total Hacks 64 | . 21 . 41 . 2 . Successful 41 | . 10 . 29 . 2 . Failed 23 | . 11 . 12 . . . Catastrophic 1 | . . . 1 . . . Database Lockouts . | . . . . . . . Manual 34 | . 10 . 23 . 1 . Terminals 51 | . 21 . 30 . . . Fabricators . | . . . . . . . Repair Stations 5 | . . . 5 . . . Recycling Units 2 | . . . 2 . . . Scanalyzers 4 | . . . 4 . . . Garrison Access . | . . . . . . . Terminal Hacks 22 | . 5 . 15 . 2 . Record 1 | . . . . . 1 . Prototype ID Bank 2 | . 1 . 1 . . . Branch Access Points 1 | . . . 1 . . . Terminal Index 1 | . 1 . . . . . Alert Level 1 | . . . 1 . . . Unreport Threat 1 | . . . 1 . . . Locate Traps 5 | . 2 . 3 . . . Disarm Traps 1 | . . . 1 . . . Dispatch Records 1 | . . . 1 . . . Hauler Manifests 3 | . 1 . 2 . . . Registered Components 1 | . . . 1 . . . Zone Layout 3 | . . . 3 . . . Proto ID Catalog 1 | . . . . . 1 . Fabricator Hacks . | . . . . . . . Repair Station Hacks 3 | . . . 3 . . . Scan Component 2 | . . . 2 . . . Repair 1 | . . . 1 . . . Recycling Unit Hacks 1 | . . . 1 . . . Retrieve Components 1 | . . . 1 . . . Scanalyzer 3 | . . . 3 . . . Retrieve Study 3 | . . . 3 . . . Garrison Access Hacks . | . . . . . . . Unauthorized Hacks 12 | . 5 . 7 . . . Terminals 12 | . 5 . 7 . . . Botnet 1 | . . . 1 . . . Operators 1 | . . . 1 . . . Skim 10 | . 5 . 5 . . . Fabricators . | . . . . . . . Repair Stations . | . . . . . . . Recycling Units . | . . . . . . . Scanalyzers . | . . . . . . . Garrison Access . | . . . . . . . Data Cores Recovered . | . . . . . . . Used . | . . . . . . . Hacking Detections 15 | . 5 . 10 . . . Full Trace Events 1 | . 1 . . . . . Feedback Events . | . . . . . . . Feedback Blocked . | . . . . . . . Robot Schematics Acquired . | . . . . . . . Robots Built . | . . . . . . . Authchips . | . . . . . . . Time . | . . . . . . . Total Robot Build Rating . | . . . . . . . Part Schematics Acquired . | . . . . . . . Parts Built . | . . . . . . . Authchips . | . . . . . . . Time . | . . . . . . . Total Part Build Rating . | . . . . . . . Part Studies Acquired 3 | . . . 3 . . . Parts Repaired 1 | . . . 1 . . . Time 26 | . . . 26 . . . Parts Recycled . | . . . . . . . Recycled Matter . | . . . . . . . Retrieved Matter . | . . . . . . . Retrieved Components 4 | . . . 4 . . . Parts Scanalyzed . | . . . . . . . Part Schematics Acquired . | . . . . . . . Parts Damaged . | . . . . . . . Bothacking | -11 -10 -10 -9 -9 -9 -8 ------------ Run | Yrd Mat Min Mat Min Exi Min Used RIF Installer . | . . . . . . . Robots Hacked . | . . . . . . . Non-combat . | . . . . . . . Combat . | . . . . . . . Robot Hacks Applied . | . . . . . . . Relay Couplers Released . | . . . . . . . Fabnet Peak Effective % . | . . . . . . . Robots Rewired . | . . . . . . . Allies Hacked . | . . . . . . . Hacks Repelled . | . . . . . . . Allies | -11 -10 -10 -9 -9 -9 -8 -------- Run | Yrd Mat Min Mat Min Exi Min Total Allies 2 | . . . . 2 . . Largest Group 2 | . . . . 2 2 . Highest-Rated Group 49 | . . . . 49 49 . Highest-Rated Ally 31 | . . . . 31 31 . Total Orders . | . . . . . . . Ally Attacks . | . . . . . . . Total Damage . | . . . . . . . Kills . | . . . . . . . Allies Corrupted . | . . . . . . . Allies Melted . | . . . . . . . Intel | -11 -10 -10 -9 -9 -9 -8 ------- Run | Yrd Mat Min Mat Min Exi Min Active Infowar (turns) 107 | . . . 107 . . . Traps 107 | . . . 107 . . . Robot Analysis Total . | . . . . . . . Derelict Logs Recovered 3 | . . 1 . 2 . . Drone Launches . | . . . . . . . Drone Recoveries . | . . . . . . . Exploration | -11 -10 -10 -9 -9 -9 -8 ------------- Run | Yrd Mat Min Mat Min Exi Min Turns Passed 7154 | 5 1685 734 2549 1371 794 16 Spaces Moved 2914 | 1 742 371 985 551 261 3 Core . | . . . . . . . Treads 1449 | 1 81 . 552 551 261 3 Legs . | . . . . . . . Wheels 1465 | . 661 371 433 . . . Hover . | . . . . . . . Flight . | . . . . . . . Fastest Speed 115 | 160 115 175 175 243 243 246 Average Speed 205 | 160 168 175 214 243 243 246 Slowest Speed 246 | 160 190 175 246 243 246 246 Overloaded Moves . | . . . . . . . Propulsion Burnouts . | . . . . . . . Robots Hopped . | . . . . . . . Potential Cave-ins . | . . . . . . . Cave-ins Triggered . | . . . . . . . Exploration Rate (%) 59 | 2 96 70 82 99 61 7 Regions Visited 6 Branch Regions 4 Pre-discovered Areas 7 | . . . 5 1 1 . Known Exits Taken 2 | . . 1 1 . . . Unknown Exits Taken 4 | 1 1 . . 1 1 . Scrap Searched 5 | . . 2 . 3 . . Spaces Dug . | . . . . . . . Terrain Destroyed 58 | . . . 46 12 . . Melee . | . . . . . . . Projectile . | . . . . . . . AOE 58 | . . . 46 12 . . Terrain Rammed . | . . . . . . . Walls Destroyed . | . . . . . . . Machines Disabled . | . . . . . . . Actions | -11 -10 -10 -9 -9 -9 -8 --------- Run | Yrd Mat Min Mat Min Exi Min Total 3645 | 6 1056 421 1249 575 331 7 Wait 319 | . 200 19 82 18 . . Move 2908 | . 741 370 984 550 260 3 Hop . | . . . . . . . Pick Up 59 | . 18 7 23 . 11 . Fast Attach 9 | . 4 . 5 . . . Attach 24 | 2 3 2 8 . 8 1 Detach 2 | 2 . . . . . . Swap 32 | . 5 3 15 2 6 1 Drop 31 | 2 6 2 19 . 2 . Fire 225 | . 61 18 95 5 44 2 Melee . | . . . . . . . Ram . | . . . . . . . Kick . | . . . . . . . Crush . | . . . . . . . Escape Stasis . | . . . . . . . Rewire . | . . . . . . . Trap 36 | . 18 . 18 . . . Miscellaneous . | . . . . . . . Route ------- -11/Scrapyard -10/Materials (discovered 5 exits: *Mat x3 / [*Min] / Sub) -10/Mines (discovered 2 exits: *Mat x2) -9/Materials (discovered 5 exits: *Mat x3 / *Min x2) -9/Mines (discovered 3 exits: *Mat x2 / *Exi) -9/Exiles -8/Mines History --------- Turn | Location | Event 1 | -11/Scrapyard | Discovered new exit (range 2) 6 | -11/Scrapyard | Entered Materials 24 | -10/Materials | Discovered new exit (range 14) 211 | -10/Materials | Discovered new exit (range 6) 318 | -10/Materials | Build established: Mutant 521 | -10/Materials | Discovered new exit (range 16) 769 | -10/Materials | Discovered new exit (range 16) 1420 | -10/Materials | Identified exit to Subcaves 1512 | -10/Materials | Learned 2 Mines zone layouts 1542 | -10/Materials | Learned 2 Storage zone layouts 1564 | -10/Materials | Learned 2 Mines zone layouts 1574 | -10/Materials | Learned 2 Storage zone layouts 1575 | -10/Materials | Learned location of 2 exits from Mines 1597 | -10/Materials | Learned location of 1 exit from Storage 1659 | -10/Materials | Learned 4 Recycling zone layouts 1691 | -10/Materials | Entered Mines 1692 | -10/Mines | Identified exit to Materials 1870 | -10/Mines | Core integrity fell below 50% 2271 | -10/Mines | Assembled infested the area 2402 | -10/Mines | Learned 2 Materials zone layouts 2407 | -10/Mines | Received a Rocket Launcher from a helpful Derelict 2425 | -10/Mines | Entered Materials 2425 | -9/Materials | Evolved 2 slots: Propulsion x1, Utility x1 2426 | -9/Materials | Identified exit to Mines 2427 | -9/Materials | Identified exit to Materials 3325 | -9/Materials | Learned location of Storage (-8) 3388 | -9/Materials | Learned location of Zion (-6) 3439 | -9/Materials | Learned location of Recycling (-8) 3478 | -9/Materials | Learned 2 Storage zone layouts 3509 | -9/Materials | Learned Storage security intel 3982 | -9/Materials | Discovered exit to Materials (range 15) 4350 | -9/Materials | Build established: Scavenger-Mutant 4701 | -9/Materials | Repaired Lgt. Armor Plating 4974 | -9/Materials | Entered Mines 5016 | -9/Mines | Learned Materials stockpile data 5057 | -9/Mines | Discovered exit to Materials (range 9) 5179 | -9/Mines | Discovered exit to Materials (range 6) 5476 | -9/Mines | Deemed a non-threat by the Exiles lab entrance 5622 | -9/Mines | Learned Materials garrison access intel 6335 | -9/Mines | Discovered new exit (range 5) 6345 | -9/Mines | Entered Exiles 6345 | -9/Exiles | Accompanied by 2 allies 6375 | -9/Exiles | Led the pair of lost Derelicts to a safe place 6404 | -9/Exiles | Met 8R-AWN 6448 | -9/Exiles | Met EX-HEX 6540 | -9/Exiles | Met EX-DEC 6591 | -9/Exiles | Met EX-BIN 6625 | -9/Exiles | Aligned with FarCom system 6627 | -9/Exiles | Given EX-Vault access code 6683 | -9/Exiles | Opened EX-Vault 6759 | -9/Exiles | Warned to stay clear of 0b10 Research branches 6781 | -9/Exiles | Exiles lab attacked by MAIN.C 6909 | -9/Exiles | Discovered new exit (range 14) 6947 | -9/Exiles | Attacked by the Exiles 6988 | -9/Exiles | Core integrity fell below 50% 7005 | -9/Exiles | Lost 3 parts (2n1u) 7088 | -9/Exiles | Destroyed 8R-AWN 7094 | -9/Exiles | Found Prototype Processor 7103 | -9/Exiles | Lost 5 parts (2n1u2w) 7104 | -9/Exiles | Found Prototype Protection 7117 | -9/Exiles | Found Prototype Ballistic Gun 7121 | -9/Exiles | Found Prototype Device 7133 | -9/Exiles | Identified 8R-AWN's Boregun 7139 | -9/Exiles | Entered Mines 7147 | -8/Mines | 12-ASH came to Exiles' defense 7153 | -8/Mines | Core integrity fell below 20% 7155 | -8/Mines | Destroyed by 12-ASH with 12-ASH's Boomstick Last Messages --------------- 07088_ 8R-AWN destroyed. 07094_ Acquired Prototype Processor. 07097_ Acquired Hcp. Matter Pod. 07101_ Acquired Prototype Device. 07104_ Acquired Prototype Protection. 07108_ Acquired Prototype Leg. 07111_ Acquired Prototype Device. 07112_ Dropped Prototype Protection. 07112_ Acquired 120 matter. 07117_ Acquired Prototype Ballistic Gun. 07121_ Acquired Prototype Device. 07124_ Acquired Adv. Weapon Cycler. 07128_ Acquired Rnf. Fission Core. 07132_ Acquired Prototype Leg. 07133_ Identified 8R-AWN's Boregun. A strange signal echoes through the mines. LOCATION=UNKNOWN GOAL=ESCAPE 07147_ 12-ASH: "I came as fast as I could... Wait, it was you!" 07147_ 8R-AWN's Boregun destroyed. Map ----- +----------------------------------------------------+ | ???????????????????????????????? | | ???????????????????????????????? | | ???????????????????????????????? | | ???????????????????????????????? | | ???????????????????????????????? | | ???????????????????????????????? | | ???????????????????????????????? | | ???????????????????????????????? | | ???????????????????????????????? | | ???????????????????????????????? | | ???????????????????????????????? | | ???????????????????????????????? | | ???????????????????????????????? | | ???????????????????????????????? | | ???????????????????????????????? | | ???????????????????????????????? | | ?????????????#?????????????????? | | ?????????????# ?###????????????? | | ?????????????? # #####???????? | | ?????????????# # #??????? | | ???????????? # ##????? | | ???????????# t #????? | | ??????????? #????? | | ?????????? #????? | | ??????????g ##???? | | ?????????? @ ##??? | | ??????????# ##?? | | ??????????# #### #?? | | ??????????????????## #?? | | ???????????????????##### #?? | | ???????????????????????### ##?? | | ?????????????????????????####??? | | ???????????????????????????????? | | ???????????????????????????????? | | ???????????????????????????????? | | ???????????????????????????????? | | ???????????????????????????????? | | ???????????????????????????????? | | ???????????????????????????????? | | ???????????????????????????????? | | ???????????????????????????????? | | ???????????????????????????????? | | ???????????????????????????????? | | ???????????????????????????????? | | ???????????????????????????????? | | ???????????????????????????????? | | | | | | | | | +----------------------------------------------------+ Best States ------------- Heat Dissipation 50 Energy Generation 14 Energy Capacity 280 Matter Stores 300 Matter Capacity 300 Sight Range 16 Terrain Scan Density 10 Armor Coverage 150 Evasion (%) 40 Recoil Reduction 3 Salvage Targeting 1 Offensive Hacking 10 Item Schematics ----------------- None Robot Schematics ------------------ None Fabricated ------------ Nothing Repaired ---------- Lgt. Armor Plating | 31% | -9/Materials Studied --------- Hvy. Assault Rifle | -9/Materials | Hacked Assault Rifle | -9/Materials | Hacked Mni. Grenade Launcher | -9/Materials | Hacked Alien Tech Used ----------------- None Achievements -------------- Resistances Are Futile Sixth Sense Challenges ------------ None Game ------ Seed ReflexHellfireMantle Manual? 0 Play Time 00:30:21 Cumulative 869.4 hours Start 2025.11.03 @ 21:05:26 End 2025.11.03 @ 21:44:40 Sessions 4 Manual Loads 0 Difficulty Rogue Special Mode None Game No. 741 Rogue 741 Adventurer 0 Explorer 0 Win Type - Total 45 Types 15/8/10/1/1/1/7/1/1/0 Lore% 73 Gallery% 83 Achievement% 54 Wizard Run 0 Options --------- Layout 0 ASCII 0 Keyboard 0 Movement Mouse Keybinds 1 Fullscreen 2 Font 24/Smallcaps Map View 76x50 Zoom Use 0% Tactical HUD 1 Map Filters NONE Filters NONE Steam 1 RUN: bed988eb-7b7d-461a-97d3-4aea5afa1901